bitfinex/quotes_ETHUSD_20250524
["timestamp","ask_amount","ask_price","bid_price","bid_amount"]
[1748105223102,5.59880864,2555.5,2555.4,16.876]
[1748105223303,5.59880864,2555.5,2555.4,43.785]
[1748105225005,0.8174,2554.6,2554.1,0.05]
[1748105225312,12.46328167,2555.4,2554.1,0.05]
[1748105225313,0.8174,2554.9,2554.3,8.0]
[1748105225609,3.91477518,2554.5,2554.3,8.0]
[1748105226368,3.91481365,2554.4,2554.3,8.0]
[1748105226770,3.91481365,2554.4,2554.3,34.914]
[1748105227811,3.91481365,2554.4,2554.3,8.0]
[1748105228014,3.91481365,2554.4,2554.3,34.914]
[1748105228810,3.91472632,2554.5,2554.3,34.914]
[1748105229017,3.91481365,2554.4,2554.3,34.914]
[1748105232010,3.91481365,2554.4,2554.3,35.30941284]
[1748105232216,5.4030101,2554.8,2554.3,35.30941284]
[1748105232376,3.91449523,2554.7,2554.3,35.30941284]
[1748105232778,3.91449523,2554.7,2554.3,8.39541284]
[1748105232979,3.91449523,2554.7,2554.5,8.0]
[1748105233179,3.91450716,2554.6,2554.5,8.0]
[1748105234342,3.91450716,2554.6,2554.3,8.39541284]
[1748105234532,3.91450716,2554.6,2554.5,34.922]
[1748105235840,3.91437082,2554.7,2554.5,34.922]
[1748105236047,3.91435393,2554.7,2554.6,8.0]
[1748105236941,0.8174,2554.9,2554.2,20.79308496]
[1748105236942,3.91468007,2554.5,2554.3,8.0]
[1748105237094,3.91481365,2554.4,2554.3,8.0]
[1748105237293,3.91481365,2554.4,2554.3,34.923]
[1748105237734,3.91481365,2554.4,2554.3,8.0]
[1748105237888,3.91481365,2554.4,2554.3,34.882]
[1748105239435,3.91481365,2554.4,2554.3,23.154]
[1748105239608,3.91481365,2554.4,2554.3,34.882]
[1748105240128,3.91481365,2554.4,2554.3,26.882]
[1748105242541,3.91496691,2554.3,2554.2,25.26094178]
[1748105242953,3.91496691,2554.3,2554.2,52.14394178]
[1748105244246,3.91496691,2554.3,2554.2,52.14494178]
[1748105245115,3.91496691,2554.3,2554.2,25.26094178]
[1748105245320,3.91496691,2554.3,2554.2,52.14494178]
[1748105245843,3.91496691,2554.3,2554.2,40.41594178]
[1748105246049,3.91496691,2554.3,2554.2,52.14494178]
[1748105246453,3.91496691,2554.3,2554.2,17.26094178]
[1748105246632,3.91496691,2554.3,2554.2,32.41694178]
[1748105246804,4.77485743,2554.3,2554.2,43.763]
[1748105247925,3.91496691,2554.3,2554.2,43.763]
[1748105249547,3.91496691,2554.3,2554.2,16.878]
[1748105250049,3.91496691,2554.3,2554.2,43.765]
[1748105250522,3.91496691,2554.3,2554.2,32.035]
[1748105250721,3.91496691,2554.3,2554.2,43.765]
[1748105251244,5.403737,2554.3,2554.2,16.878]
[1748105251545,5.403737,2554.3,2554.2,43.765]
[1748105252842,5.403737,2554.3,2554.2,16.878]
[1748105253035,5.403737,2554.3,2554.2,43.766]
[1748105253238,6.00495645,2554.3,2554.2,43.766]
[1748105254546,6.00495645,2554.3,2554.2,32.036]
[1748105254744,6.00495645,2554.3,2554.2,43.766]
[1748105256854,6.00495645,2554.3,2554.2,16.878]
[1748105257062,6.00495645,2554.3,2554.2,43.767]
[1748105259325,5.403737,2554.3,2554.2,43.767]
[1748105260517,5.403737,2554.3,2554.2,16.878]
[1748105261041,6.22171528,2554.3,2554.2,43.768]
[1748105261231,6.182437,2554.3,2554.2,43.768]
[1748105262033,6.54779071,2554.3,2554.2,16.878]
[1748105262244,7.59405361,2554.3,2554.2,43.768]
[1748105262953,7.59405361,2554.3,2554.2,32.037]
[1748105263120,7.59405361,2554.3,2554.2,43.768]
[1748105265758,7.59405361,2554.3,2554.2,32.037]
[1748105265959,17.84405361,2554.3,2554.2,43.769]
[1748105266658,17.84405361,2554.3,2554.2,16.878]
[1748105266856,17.84405361,2554.3,2554.2,43.77]
[1748105267058,17.84405361,2554.3,2554.2,32.038]
[1748105267263,26.39405361,2554.3,2554.2,32.038]
[1748105267559,26.39405361,2554.3,2554.2,32.039]
[1748105269137,25.84405361,2554.3,2554.2,32.039]
[1748105271073,25.84405361,2554.3,2554.2,43.773]
[1748105271360,26.39405361,2554.3,2554.2,16.878]
[1748105271540,26.39405361,2554.3,2554.2,43.633]
[1748105271541,28.23033379,2554.3,2554.2,43.633]
[1748105272574,26.39405361,2554.3,2554.2,43.633]
[1748105273062,28.23033379,2554.3,2554.2,43.633]
[1748105273269,26.39405361,2554.3,2554.2,43.633]
[1748105273849,26.39405361,2554.3,2554.2,16.878]
[1748105274032,26.39405361,2554.3,2554.2,43.634]
[1748105275569,28.23033379,2554.3,2554.2,31.9]
[1748105275868,28.23033379,2554.3,2554.2,43.634]
[1748105276365,28.23033379,2554.3,2554.2,16.878]
[1748105276564,28.23033379,2554.3,2554.2,31.901]
[1748105276968,28.23033379,2554.3,2554.2,16.878]
[1748105277174,28.23033379,2554.3,2554.2,31.901]
[1748105277540,13.95389028,2554.2,2554.1,0.05]
[1748105277742,18.73168337,2554.2,2554.1,15.073]
[1748105278165,19.09703708,2554.2,2554.1,15.073]
[1748105281348,19.08220708,2554.2,2554.1,15.073]
[1748105282983,17.70440708,2554.2,2554.1,15.073]
[1748105283197,5.75441399,2554.2,2554.1,15.073]
[1748105283486,13.75441399,2554.2,2554.1,15.073]
[1748105283868,13.38906028,2554.2,2554.1,15.073]
[1748105284170,13.38906028,2554.2,2554.1,15.871]
[1748105286664,13.38906028,2554.2,2554.1,15.073]
[1748105288405,5.38906028,2554.2,2554.1,15.073]
[1748105289304,3.91512019,2554.2,2554.1,15.9036]
[1748105289668,1.47394009,2554.7,2554.2,0.8306]
[1748105289902,3.91481365,2554.4,2554.3,14.19410674]
[1748105290072,3.91481365,2554.4,2554.3,14.15496]
[1748105290601,3.91471532,2554.5,2554.4,0.7594]
[1748105293108,3.9145416,2554.6,2554.4,0.7594]
[1748105293319,3.91443244,2554.7,2554.6,0.7594]
[1748105293464,3.91420072,2554.8,2554.7,0.7594]
[1748105294909,8.0,2555.5,2554.7,0.19534226]
[1748105295110,3.91404751,2554.9,2554.8,0.7594]
[1748105295271,3.91398803,2555.0,2554.8,0.7594]
[1748105295597,3.91398803,2555.0,2554.9,12.4914]
[1748105296398,3.91398803,2555.0,2554.9,0.7594]
[1748105296604,0.20412767,2558.1,2555.0,0.7811]
[1748105296605,3.91275409,2555.8,2555.0,0.7811]
[1748105296774,3.91247269,2556.0,2555.2,0.7811]
[1748105297110,3.91312854,2555.5,2555.4,0.7811]
[1748105297418,3.91250914,2556.0,2555.5,0.7811]
[1748105297604,10.76669551,2556.6,2555.7,0.7811]
[1748105297774,3.91246791,2556.0,2555.8,11.73]
[1748105298075,3.91246791,2556.0,2555.9,15.017]
[1748105299474,3.91194425,2556.3,2556.0,0.7811]
[1748105299686,1.97259551,2556.6,2556.0,0.7811]
[1748105299902,3.91214585,2556.2,2556.1,1.57981]
[1748105300105,3.91214585,2556.2,2556.1,13.30981]
[1748105301677,3.91205695,2556.2,2556.1,13.30981]
[1748105304291,3.91221,2556.1,2556.0,0.7811]
[1748105304496,3.91221,2556.1,2556.0,27.4541]
[1748105305525,3.91221,2556.1,2556.0,0.7811]
[1748105305707,3.91221,2556.1,2556.0,27.4541]
[1748105306335,3.91221,2556.1,2556.0,0.7811]
[1748105306529,3.91221,2556.1,2556.0,27.4541]
[1748105307211,3.91221,2556.1,2556.0,27.4521]
[1748105308128,3.91221,2556.1,2556.0,0.7811]
[1748105308433,3.91221,2556.1,2556.0,27.4521]
[1748105309098,3.91212838,2556.2,2556.0,27.4521]
[1748105309293,3.91154766,2556.6,2556.0,27.4521]
[1748105309294,3.91221,2556.1,2556.0,27.4521]
[1748105309836,3.91191369,2556.3,2556.0,27.4521]
[1748105309997,3.91161922,2556.5,2556.0,27.4521]
[1748105310200,3.91221,2556.1,2556.0,27.4521]
[1748105313341,3.91207746,2556.2,2555.6,16.892]
[1748105313342,3.91205695,2556.2,2555.6,16.892]
[1748105313639,0.8058,2556.3,2555.6,16.892]
[1748105313640,3.91282231,2555.7,2555.6,16.892]
[1748105314015,11.91282231,2555.7,2555.6,43.559]
[1748105315303,3.91282231,2555.7,2555.6,43.559]
[1748105316606,3.91282231,2555.7,2555.6,16.892]
[1748105316813,4.69537345,2555.7,2555.6,43.561]
[1748105317216,3.91282231,2555.7,2555.6,43.561]
[1748105321289,3.91282231,2555.7,2555.6,31.837]
[1748105321551,4.74522231,2555.7,2555.6,43.561]
[1748105324149,4.74522231,2555.7,2555.6,31.837]
[1748105324352,4.74522231,2555.7,2555.6,43.561]
[1748105325348,5.75840746,2555.7,2555.6,43.561]
[1748105326758,5.75840746,2555.7,2555.6,31.837]
[1748105327061,5.75840746,2555.7,2555.6,43.562]
[1748105328828,3.91282231,2555.7,2555.6,43.562]
[1748105332029,3.91282231,2555.7,2555.6,43.511]
[1748105336087,3.91282231,2555.7,2555.6,44.2837]
[1748105346341,0.05,2556.9,2555.6,44.2837]
[1748105346342,0.7758,2556.4,2555.6,44.2837]
[1748105346586,3.91262206,2555.9,2555.6,44.09073787]
[1748105346791,3.91262206,2555.9,2555.7,0.7628]
[1748105347086,3.91242533,2556.0,2555.7,1.13534726]
[1748105347240,3.91242533,2556.0,2555.8,0.7628]
[1748105347688,4.68734102,2556.6,2555.8,0.7628]
[1748105347887,3.912243,2556.1,2555.8,0.7628]
[1748105348091,3.91236712,2556.0,2555.8,0.7628]
[1748105348301,3.91215162,2556.2,2555.8,0.7628]
[1748105348666,3.91243848,2556.0,2555.8,0.7628]
[1748105348862,3.91213954,2556.2,2555.8,0.7628]
[1748105349796,3.91211427,2556.2,2555.8,0.7628]
[1748105350002,3.91211427,2556.2,2555.9,0.46755634]
[1748105350201,3.91211427,2556.2,2556.0,11.724]
[1748105350402,3.91211427,2556.2,2556.1,14.892]
[1748105350785,3.91211427,2556.2,2556.1,15.645]
[1748105351184,3.91179514,2556.4,2556.1,15.645]
[1748105351185,3.91184488,2556.4,2556.1,15.645]
[1748105351804,3.91160554,2556.5,2556.1,15.645]
[1748105351974,3.9114373,2556.7,2556.2,0.753]
[1748105352156,3.91144488,2556.6,2556.2,0.753]
[1748105352358,0.05,2556.9,2556.3,3.91190392]
[1748105352689,3.91128357,2556.8,2556.5,0.753]
[1748105353035,3.91128357,2556.8,2556.6,33.0216]
[1748105354595,0.05,2556.9,2556.6,33.0216]
[1748105354796,3.91116317,2556.8,2556.6,33.0216]
[1748105355095,3.91116317,2556.8,2556.6,33.40907787]
[1748105355294,3.91116317,2556.8,2556.7,0.76096137]
[1748105356083,0.05,2556.9,2556.7,0.76096137]
[1748105356291,0.05,2556.9,2556.8,0.8165]
[1748105361714,3.96098595,2556.9,2556.8,0.8165]
[1748105362005,0.05,2556.9,2556.8,27.3325]
[1748105362303,0.05,2556.9,2556.8,28.5801]
[1748105362512,3.96098595,2556.9,2556.8,2.0641]
[1748105362670,3.96098595,2556.9,2556.6,17.26947787]
[1748105362671,3.91129189,2556.7,2556.6,18.02407787]
[1748105363008,3.91129189,2556.7,2556.6,44.54007787]
[1748105363678,3.91120987,2556.8,2556.6,44.54007787]
[1748105363906,3.96106162,2556.9,2556.6,44.54007787]
[1748105365726,3.96101314,2556.9,2556.6,18.02407787]
[1748105365927,3.91113892,2556.8,2556.7,26.515]
[1748105367126,3.91129189,2556.7,2556.6,17.26947787]
[1748105367637,3.91129189,2556.7,2556.6,31.677]
[1748105367638,4.66199189,2556.7,2556.6,31.677]
[1748105367828,4.66199189,2556.7,2556.6,43.396]
[1748105369482,4.66199189,2556.7,2556.6,31.677]
[1748105369692,4.66199189,2556.7,2556.6,43.397]
[1748105371731,5.52430497,2556.7,2556.6,43.397]
[1748105372996,5.52430497,2556.7,2556.6,16.882]
[1748105373301,5.52430497,2556.7,2556.6,43.398]
[1748105374123,5.52430497,2556.7,2555.4,8.7861]
[1748105374124,3.91277792,2555.8,2555.4,8.7861]
[1748105374321,3.91249774,2556.0,2555.6,0.7861]
[1748105374629,3.91254336,2555.9,2555.6,0.7861]
[1748105374995,4.6794886,2556.4,2555.6,0.7861]
[1748105374996,3.91240619,2556.0,2555.6,0.7861]
[1748105375195,3.91240619,2556.0,2555.6,1.26177402]
[1748105376146,3.91224455,2556.1,2555.6,4.69904922]
[1748105376475,3.91239649,2556.0,2555.7,1.05541189]
[1748105377794,3.91257713,2555.9,2555.7,0.57973787]
[1748105378710,3.91244635,2556.0,2555.7,0.57973787]
[1748105379731,3.91223434,2556.1,2555.7,0.57973787]
[1748105380047,3.91135163,2556.7,2556.1,0.8164]
[1748105380198,3.91147132,2556.6,2556.2,26.519]
[1748105380511,3.91175319,2556.4,2556.2,26.519]
[1748105380930,3.91173158,2556.5,2556.2,26.519]
[1748105381549,3.9117653,2556.4,2556.2,26.519]
[1748105381755,3.9117653,2556.4,2556.3,1.48068371]
[1748105383515,0.05,2556.9,2556.3,27.3442]
[1748105383716,3.91168739,2556.5,2556.3,27.3442]
[1748105383930,3.91175089,2556.4,2556.3,27.3442]
[1748105384728,3.91165522,2556.5,2556.3,27.3442]
[1748105385128,3.91135089,2556.7,2556.3,27.3442]
[1748105385444,3.91162741,2556.5,2556.3,27.3442]
[1748105385771,1.17283,2560.4,2556.4,2.6]
[1748105385772,0.05,2557.9,2556.4,2.6]
[1748105386062,0.05,2557.9,2557.5,0.8166]
[1748105386216,3.95951592,2557.9,2557.6,43.396]
[1748105386412,3.90960982,2557.8,2557.6,43.78791406]
[1748105386660,3.90976267,2557.7,2557.6,43.78791406]
[1748105388316,3.90976267,2557.7,2557.6,17.26991406]
[1748105388566,3.90976267,2557.7,2557.6,43.78391406]
[1748105390620,3.90976267,2557.7,2557.6,43.78091406]
[1748105391781,3.90976267,2557.7,2557.6,17.26991406]
[1748105391947,3.90976267,2557.7,2557.6,43.97591406]
[1748105393260,3.90976267,2557.7,2557.6,32.25791406]
[1748105393582,3.90976267,2557.7,2557.6,43.97591406]
[1748105393878,3.90976267,2557.7,2557.6,43.97391406]
[1748105394866,3.90976267,2557.7,2557.6,17.26991406]
[1748105395044,4.77963992,2557.7,2557.6,43.97391406]
[1748105395239,4.77963992,2557.7,2557.6,43.582]
[1748105395977,5.59323992,2557.7,2557.6,43.582]
[1748105400098,3.90976267,2557.7,2557.6,43.582]
[1748105401199,3.90976267,2557.7,2557.6,16.878]
[1748105401370,3.90976267,2557.7,2557.6,43.582]
[1748105402193,3.95953155,2557.9,2557.6,43.582]
[1748105402385,3.90976267,2557.7,2557.6,43.582]
[1748105405207,0.05,2557.9,2557.6,43.582]
[1748105405208,0.05,2557.9,2557.7,0.8231]
[1748105405511,3.90962336,2557.8,2557.7,0.8231]
[1748105405715,3.95953077,2557.9,2557.7,0.8231]
[1748105406010,3.90960982,2557.8,2557.7,0.8231]
[1748105406978,3.90976267,2557.7,2557.6,16.878]
[1748105407314,3.90971604,2557.8,2557.6,43.58]
[1748105408018,5.25611162,2558.2,2557.7,5.33302918]
[1748105408316,3.90916723,2558.1,2557.7,2.04159777]
[1748105408502,3.90931159,2558.0,2557.7,2.04159777]
[1748105408904,3.90916857,2558.1,2557.7,2.04159777]
[1748105409114,3.90941369,2558.0,2557.7,2.04159777]
[1748105409314,3.90960982,2557.8,2557.7,0.7757]
[1748105409686,3.90960982,2557.8,2557.7,27.4767]
[1748105410212,3.90960982,2557.8,2557.7,27.4757]
[1748105410411,3.9095001,2557.9,2557.7,27.4757]
[1748105410611,3.90941442,2558.0,2557.7,27.4757]
[1748105411327,3.90941442,2558.0,2557.7,28.12326823]
[1748105411529,3.90948992,2557.9,2557.7,28.12326823]
[1748105412237,3.90948992,2557.9,2557.7,27.4757]
[1748105413341,3.90938703,2558.0,2557.7,27.4757]
[1748105413901,3.90930456,2558.0,2557.7,27.4757]
[1748105414939,3.90931707,2558.0,2557.7,28.74159777]
[1748105415132,3.90915132,2558.1,2557.7,28.74159777]
[1748105415732,1.34702827,2558.2,2557.8,1.26589777]
[1748105415935,3.90916885,2558.1,2557.8,1.26589777]
[1748105420064,3.90932171,2558.0,2557.8,1.26589777]
[1748105420357,3.90931408,2558.0,2557.8,1.26589777]
[1748105420557,3.90918234,2558.1,2557.9,11.714]
[1748105420763,3.90918234,2558.1,2557.9,28.582]
[1748105421682,5.25607852,2558.2,2557.9,28.582]
[1748105422085,1.2490882,2558.2,2557.9,29.84789777]
[1748105422472,5.15811489,2558.2,2557.9,29.84789777]
[1748105422677,0.01144262,2558.2,2558.1,0.8077]
[1748105423979,3.90855409,2558.5,2558.2,0.8077]
[1748105424152,3.9078143,2559.0,2558.3,16.15289777]
[1748105424361,3.90854474,2558.5,2558.4,11.714]
[1748105424558,3.90844696,2558.6,2558.4,11.714]
[1748105424778,3.90856797,2558.5,2558.3,1.26589777]
[1748105424983,3.90856797,2558.5,2558.4,26.601]
[1748105425294,3.90838739,2558.6,2558.4,26.601]
[1748105425452,3.90819005,2558.8,2558.4,26.601]
[1748105425791,0.7548,2559.2,2558.4,26.601]
[1748105425953,0.8123,2558.7,2558.5,26.601]
[1748105426290,3.90851155,2558.6,2558.5,26.601]
[1748105427357,3.90851155,2558.6,2558.5,26.599]
[1748105430272,3.90871344,2558.4,2558.2,0.8077]
[1748105430473,3.90871344,2558.4,2558.3,26.598]
[1748105433064,4.72088456,2558.5,2558.3,26.597]
[1748105433261,3.90869293,2558.4,2557.9,16.868]
[1748105433461,3.90930414,2558.0,2557.9,16.868]
[1748105433660,3.90930414,2558.0,2557.9,43.465]
[1748105433856,3.90930414,2558.0,2557.9,16.868]
[1748105434180,3.90930414,2558.0,2557.9,43.465]
[1748105437802,0.8123,2558.5,2557.9,43.465]
[1748105437974,3.90930414,2558.0,2557.9,43.465]
[1748105438380,3.90917672,2558.1,2557.9,43.465]
[1748105438983,3.90909111,2558.2,2557.9,44.03781823]
[1748105439383,3.90930414,2558.0,2557.9,31.753]
[1748105439583,3.90930414,2558.0,2557.9,43.465]
[1748105440099,4.72085592,2558.5,2557.9,43.465]
[1748105440307,3.90920813,2558.1,2557.9,43.465]
[1748105440467,3.90928121,2558.1,2557.9,43.465]
[1748105440660,3.90930414,2558.0,2557.9,43.465]
[1748105441565,3.90925058,2558.1,2557.9,43.465]
[1748105442899,3.90930414,2558.0,2557.9,43.465]
[1748105444006,3.90903539,2558.2,2557.9,43.465]
[1748105444309,3.90915132,2558.1,2557.9,43.465]
[1748105445209,3.90930414,2558.0,2557.9,43.465]
[1748105447717,3.90930414,2558.0,2557.9,31.753]
[1748105448014,3.90930414,2558.0,2557.9,43.465]
[1748105449317,3.90917768,2558.1,2557.9,43.465]
[1748105449518,3.90918128,2558.1,2557.9,43.465]
[1748105450518,3.90930414,2558.0,2557.9,43.465]
[1748105450893,3.90930414,2558.0,2557.9,31.753]
[1748105451088,3.90930414,2558.0,2557.9,43.465]
[1748105456729,3.90930414,2558.0,2557.9,43.83607335]
[1748105459730,3.90870925,2558.4,2557.9,43.83607335]
[1748105459731,0.8123,2558.5,2557.9,43.83607335]
[1748105459901,3.90909351,2558.2,2557.9,44.40889158]
[1748105460515,3.90930414,2558.0,2557.9,44.40889158]
[1748105463739,3.90919223,2558.1,2557.9,44.40889158]
[1748105464139,3.90919223,2558.1,2558.0,0.37107335]
[1748105465335,3.90919223,2558.1,2558.0,12.08307335]
[1748105465537,4.73609223,2558.1,2558.0,26.88407335]
[1748105465707,4.73609223,2558.1,2558.0,15.17207335]
[1748105465908,4.73609223,2558.1,2558.0,26.88407335]
[1748105466742,4.73609223,2558.1,2558.0,28.05407335]
[1748105466941,4.73609223,2558.1,2558.0,27.683]
[1748105467138,9.52394009,2558.9,2558.0,28.4579]
[1748105467139,0.8269,2558.7,2558.0,28.4579]
[1748105467344,0.8269,2558.7,2558.0,29.03071823]
[1748105467345,3.90886375,2558.3,2558.0,29.03071823]
[1748105467643,3.9088048,2558.4,2558.1,0.57281823]
[1748105468103,3.9084988,2558.6,2558.1,5.0289586]
[1748105468307,3.90855559,2558.5,2558.1,1.11981443]
[1748105469115,3.90855559,2558.5,2558.2,0.37155157]
[1748105469408,3.90869362,2558.4,2558.2,0.37155157]
[1748105469935,3.85467509,2558.5,2558.2,0.37155157]
[1748105470136,3.85467509,2558.5,2558.3,0.37155157]
[1748105470352,3.85467509,2558.5,2558.4,26.513]
[1748105471013,3.90869293,2558.4,2558.0,1.9449]
[1748105471312,3.90869293,2558.4,2558.1,26.513]
[1748105472339,4.7184715,2558.5,2558.1,26.513]
[1748105472633,4.7184715,2558.5,2558.2,26.88422217]
[1748105472634,3.90894415,2558.3,2558.2,26.88422217]
[1748105474739,3.90894415,2558.3,2558.2,26.513]
[1748105477738,3.90894415,2558.3,2558.0,1.17]
[1748105477739,3.90915132,2558.1,2558.0,1.17]
[1748105478061,3.90915132,2558.1,2558.0,27.682]
[1748105478464,4.69765132,2558.1,2558.0,1.17]
[1748105478664,5.4794689,2558.1,2558.0,27.682]
[1748105479236,4.69765132,2558.1,2558.0,27.682]
[1748105480152,0.7885,2558.1,2558.0,26.512]
[1748105480466,4.69765132,2558.1,2558.0,26.512]
[1748105480641,3.90903963,2558.2,2558.0,26.512]
[1748105480842,3.90915132,2558.1,2558.0,26.512]
[1748105484779,3.70590789,2558.2,2558.0,26.512]
[1748105485566,0.05,2558.9,2558.1,1.93171443]
[1748105485769,3.90863983,2558.5,2558.1,1.93171443]
[1748105485933,3.90869295,2558.4,2558.1,1.93171443]
[1748105487259,3.9087894,2558.4,2558.1,1.38471823]
[1748105487845,3.90858449,2558.5,2558.1,1.38471823]
[1748105488876,3.9086976,2558.4,2558.1,1.38471823]
[1748105492489,3.9086976,2558.4,2558.1,0.8119]
[1748105492691,0.7746,2558.7,2558.1,0.8119]
[1748105495101,4.68290648,2558.7,2558.1,0.8119]
[1748105496355,3.90865898,2558.5,2557.8,9.11981443]
[1748105496561,4.70912205,2558.4,2557.9,43.323]
[1748105497188,4.70912205,2558.4,2558.0,0.37094932]
[1748105497562,4.70900079,2558.4,2558.0,0.37094932]
[1748105497757,4.70902812,2558.4,2558.0,0.37094932]
[1748105498368,4.70902812,2558.4,2557.9,43.323]
[1748105499012,3.90843819,2558.6,2558.1,0.7551]
[1748105499013,3.90840626,2558.6,2558.1,0.7551]
[1748105499179,4.70859694,2558.7,2558.2,0.57281823]
[1748105499510,4.70865154,2558.7,2558.2,0.57281823]
[1748105499711,3.90840468,2558.6,2558.2,0.57281823]
[1748105500007,4.70861825,2558.7,2558.2,0.57281823]
[1748105500171,4.70861825,2558.7,2558.3,0.57840354]
[1748105500508,4.70861825,2558.7,2558.4,14.746]
[1748105500724,3.90838739,2558.6,2558.5,11.712]
[1748105501724,4.76794267,2558.9,2558.5,12.28481823]
[1748105502022,3.9081076,2558.8,2558.5,11.712]
[1748105504342,3.90827454,2558.7,2558.5,11.9083759]
[1748105504522,3.90838739,2558.6,2558.5,0.1963759]
[1748105504675,3.90838739,2558.6,2558.5,11.9073759]
[1748105504876,3.90838739,2558.6,2558.5,28.575]
[1748105506291,3.90838739,2558.6,2558.5,28.77161382]
[1748105509620,4.66208739,2558.6,2558.5,43.32]
[1748105509778,3.90838739,2558.6,2558.5,43.32]
[1748105509977,3.90838739,2558.6,2558.5,31.609]
[1748105510177,3.90838739,2558.6,2558.5,43.32]
[1748105525498,0.8073,2559.4,2558.6,0.7682]
[1748105525844,3.90764481,2559.1,2558.7,0.57281823]
[1748105526135,3.90748486,2559.2,2558.7,5.39919171]
[1748105526336,3.90772434,2559.1,2558.8,0.61673917]
[1748105526632,3.90778806,2559.0,2558.8,26.456]
[1748105526840,3.90768205,2559.1,2558.8,26.456]
[1748105527410,3.90755212,2559.2,2558.8,26.456]
[1748105527638,3.90764204,2559.1,2558.8,26.456]
[1748105528044,3.90764204,2559.1,2558.8,27.02881823]
[1748105528368,3.90755196,2559.2,2558.8,27.02881823]
[1748105528530,3.90735888,2559.3,2558.8,27.02881823]
[1748105528731,3.90762978,2559.1,2558.8,27.02881823]
[1748105528930,3.90762978,2559.1,2558.9,0.7682]
[1748105529151,3.90762978,2559.1,2559.0,26.454]
[1748105529465,3.90762978,2559.1,2559.0,26.84525377]
[1748105530632,3.90753055,2559.2,2559.0,26.84525377]
[1748105531571,0.8073,2559.5,2559.0,26.84525377]
[1748105531773,0.7739,2559.7,2559.1,0.03907277]
[1748105532065,0.3648404,2559.8,2559.1,0.03907277]
[1748105532066,3.90686967,2559.6,2559.2,0.8102]
[1748105532633,3.90690841,2559.6,2559.2,0.8102]
[1748105532831,3.90709108,2559.5,2559.2,0.8102]
[1748105535173,3.90716791,2559.4,2559.2,0.8102]
[1748105535764,3.90686758,2559.6,2559.2,0.8102]
[1748105535765,3.90707379,2559.5,2559.2,0.8102]
[1748105535964,3.90686758,2559.6,2559.2,0.8102]
[1748105535965,3.90688087,2559.6,2559.2,0.8102]
[1748105536280,3.90701704,2559.5,2559.3,0.52647663]
[1748105536440,3.90672598,2559.7,2559.2,0.8102]
[1748105536643,3.90701611,2559.5,2559.2,0.8102]
[1748105537036,3.90717216,2559.4,2559.2,0.8102]
[1748105537883,3.9073184,2559.3,2559.2,0.8102]
[1748105538184,3.90724646,2559.4,2559.2,0.8102]
[1748105541593,3.90706108,2559.5,2559.2,0.8102]
[1748105545392,4.73031945,2559.9,2559.2,0.8102]
[1748105546596,3.90709159,2559.5,2559.2,0.8102]
[1748105548067,3.90709159,2559.5,2559.3,16.858]
[1748105548703,3.90716574,2559.4,2559.3,16.858]
[1748105549222,4.73964402,2559.4,2559.3,43.278]
[1748105549362,5.53106991,2559.4,2559.3,43.278]
[1748105551390,13.53106991,2559.4,2559.3,31.571]
[1748105551903,13.89541698,2559.4,2559.3,31.571]
[1748105552402,15.85915869,2559.4,2559.3,43.278]
[1748105553111,15.85915869,2559.4,2559.3,31.571]
[1748105553408,3.90906813,2558.2,2557.9,0.8012]
[1748105553606,3.90906813,2558.2,2558.0,43.283]
[1748105553795,3.90915132,2558.1,2558.0,43.85575681]
[1748105554367,3.90857393,2558.5,2558.0,44.05412576]
[1748105554567,3.90879297,2558.4,2558.0,44.05412576]
[1748105555066,3.90887007,2558.3,2558.0,44.05412576]
[1748105555503,3.9089135,2558.3,2558.0,44.05412576]
[1748105556102,3.9090027,2558.2,2558.0,44.05412576]
[1748105557211,3.90892339,2558.3,2558.0,44.05412576]
[1748105557383,3.90899851,2558.2,2558.1,11.709]
[1748105559008,3.90857206,2558.5,2558.1,12.28175681]
[1748105559185,3.90885106,2558.3,2558.2,0.57275681]
[1748105560400,3.90885106,2558.3,2558.1,11.709]
[1748105561124,3.90877551,2558.4,2558.1,12.28175681]
[1748105561310,3.90870001,2558.4,2558.2,0.57275681]
[1748105562250,3.90860377,2558.5,2558.2,0.57275681]
[1748105562598,3.90849443,2558.6,2558.2,0.57275681]
[1748105562803,0.7602,2559.0,2558.4,0.8059]
[1748105563024,0.7602,2559.0,2558.5,14.718]
[1748105563253,3.9083646,2558.7,2558.6,11.71]
[1748105564840,3.72088404,2558.7,2558.6,11.71]
[1748105565851,3.90842238,2558.6,2558.2,0.57275681]
[1748105566023,3.90842238,2558.6,2558.3,26.429]
[1748105566024,3.90862194,2558.5,2558.3,26.429]
[1748105566822,3.90862194,2558.5,2558.4,0.7]
[1748105567916,3.90862194,2558.5,2558.4,26.429]
[1748105568250,3.90878332,2558.4,2558.1,1.3000962]
[1748105568404,3.90878332,2558.4,2558.2,26.429]
[1748105568604,3.62170532,2558.4,2558.2,26.429]
[1748105569032,3.90884571,2558.3,2558.2,14.718]
[1748105569230,3.90884571,2558.3,2558.2,26.429]
[1748105569931,3.90884571,2558.3,2558.1,0.7531]
[1748105570255,3.90884571,2558.3,2558.2,26.429]
[1748105570256,3.90887651,2558.3,2558.2,26.429]
[1748105570747,3.90884571,2558.3,2558.2,26.429]
[1748105572233,3.90915132,2558.1,2558.0,0.19836895]
[1748105572435,3.90915132,2558.1,2558.0,43.293]
[1748105572972,3.90915132,2558.1,2558.0,31.582]
[1748105573118,3.90915132,2558.1,2558.0,43.293]
[1748105573556,3.90915132,2558.1,2558.0,43.48499026]
[1748105576633,3.90915132,2558.1,2558.0,43.48699026]
[1748105577170,3.90915132,2558.1,2558.0,17.05599026]
[1748105577372,3.90915132,2558.1,2558.0,43.48599026]
[1748105578665,3.90889505,2558.3,2558.0,43.48599026]
[1748105578666,3.90903297,2558.2,2558.0,43.48599026]
[1748105579275,3.90915132,2558.1,2558.0,43.48599026]
[1748105580397,3.90915132,2558.1,2558.0,31.582]
[1748105580687,3.90915132,2558.1,2558.0,43.294]